[Event "3rd FIDE WCCC Blitz G10 2019"]
[Site "Minsk"]
[Date "2019.08.18"]
[Round "5.4"]
[White "Mutina, Sofia"]
[Black "Huynh, Phuc Minh Phuong"]
[Result "0-1"]
[ECO "A01"]
[WhiteElo "1421"]
[BlackElo "1254"]
[Annotator "NA"]
[PlyCount "182"]
[EventDate "2019.08.18"]
[EventType "swiss"]
[EventCountry "BLR"]
[SourceTitle "playchess.com"]
[Source "ChessBase"]
[SourceQuality "1"]
[TimeControl "300+2"]

1. b3 {[%emt 0:00:00]} d5 {[%emt 0:00:05]} 2. e3 {[%emt 0:00:00]} Nf6 {[%emt 0:00:04]} 3. Bb2 {[%emt 0:00:00]} e6 {[%emt 0:00:02]} 4. Nf3 {[%emt 0:00:01]} Be7 {[%emt 0:00:02]} 5. Ne5 {[%emt 0:00:01]} Nbd7 {[%emt 0:00:04]} 6. f4 {[%emt 0:00:03]} O-O {[%emt 0:00:10]} 7. Bd3 {[%emt 0:00:01]} h6 {[%emt 0:00:02]} 8. O-O {[%emt 0:00:01]} c5 {[%emt 0:00:09]} 9. Rf3 b6 {[%emt 0:00:17]} 10. Nc6 {[%emt 0:00:28]} Qe8 {[%emt 0:00:01]} 11. Bb5 {[%emt 0:00:17]} Bb7 {[%emt 0:00:08]} 12. Nxe7+ {[%emt 0:00:02]} Qxe7 {[%emt 0:00:01]} 13. Bxd7 {[%emt 0:00:03]} Nxd7 {[%emt 0:00:08]} 14. Rg3 {[%emt 0:00:01]} Nf6 {[%emt 0:00:01]} 15. d3 {[%emt 0:00:02]} Rad8 {[%emt 0:00:11]} 16. Nd2 {[%emt 0:00:02]} b5 {[%emt 0:00:21]} 17. Nf3 {[%emt 0:00:03]} c4 {[%emt 0:00:05]} 18. a4 {[%emt 0:00:09]} b4 {[%emt 0:00:09]} 19. Bd4 {[%emt 0:00:07]} a5 {[%emt 0:00:09]} 20. bxc4 dxc4 {[%emt 0:00:05]} 21. dxc4 {[%emt 0:00:08]} Rc8 {[%emt 0:00:29]} 22. Qd3 {[%emt 0:00:22]} Be4 {[%emt 0:00:01]} 23. Qe2 {[%emt 0:00:01]} Rc6 {[%emt 0:00:29]} 24. Ne5 {[%emt 0:00:02]} Rcc8 {[%emt 0:00:19]} 25. Rb1 {[%emt 0:00:45]} Bf5 {[%emt 0:00:15]} 26. Rb2 Rc7 {[%emt 0:00:55]} 27. Bb6 {[%emt 0:00:41]} Rb7 {[%emt 0:00:01]} 28. Bd4 {[%emt 0:00:03]} Qe8 {[%emt 0:00:43]} 29. Nd3 {[%emt 0:00:32]} Qe7 {[%emt 0:00:07]} 30. Bc5 {[%emt 0:00:03]} Bxd3 {[%emt 0:00:10]} 31. Bxe7 {[%emt 0:00:01]} Bxe2 {[%emt 0:00:02]} 32. Bxf8 {[%emt 0:00:02]} Kxf8 {[%emt 0:00:01]} 33. e4 {[%emt 0:00:34]} Bxc4 {[%emt 0:00:02]} 34. Re3 {[%emt 0:00:03]} Ke7 {[%emt 0:00:07]} 35. h3 {[%emt 0:00:02]} Rd7 {[%emt 0:00:07]} 36. Kf2 {[%emt 0:00:05]} Rd2+ {[%emt 0:00:03]} 37. Kf3 {[%emt 0:00:02]} Rd7 {[%emt 0:00:02]} 38. g4 {[%emt 0:00:05]} Rd6 {[%emt 0:00:06]} 39. e5 {[%emt 0:00:02]} Rc6 {[%emt 0:00:02]} 40. exf6+ {[%emt 0:00:02]} Kxf6 {[%emt 0:00:01]} 41. Kg3 {[%emt 0:00:03]} Bd5 42. h4 {[%emt 0:00:05]} g5 {[%emt 0:00:03]} 43. fxg5+ {[%emt 0:00:09]} hxg5 {[%emt 0:00:01]} 44. h5 {[%emt 0:00:01]} Kg7 {[%emt 0:00:01]} 45. Kf2 {[%emt 0:00:07]} Kh6 {[%emt 0:00:02]} 46. Kg3 {[%emt 0:00:08]} f6 {[%emt 0:00:02]} 47. Kh3 {[%emt 0:00:06]} e5 {[%emt 0:00:01]} 48. Kg3 {[%emt 0:00:03]} Be6 {[%emt 0:00:02]} 49. Kh3 {[%emt 0:00:06]} Rc4 {[%emt 0:00:01]} 50. Rg3 {[%emt 0:00:00]} Rf4 {[%emt 0:00:01]} 51. Rbb3 {[%emt 0:00:04]} e4 {[%emt 0:00:01]} 52. Rbe3 {[%emt 0:00:04]} Bd5 {[%emt 0:00:01]} 53. c3 {[%emt 0:00:02]} b3 {[%emt 0:00:02]} 54. Re2 {[%emt 0:00:01]} Rf3 {[%emt 0:00:03]} 55. Rxf3 {[%emt 0:00:04]} exf3 {[%emt 0:00:01]} 56. Rb2 {[%emt 0:00:03]} Kg7 {[%emt 0:00:02]} 57. Kg3 {[%emt 0:00:01]} Kh6 {[%emt 0:00:01]} 58. c4 {[%emt 0:00:03]} Bxc4 {[%emt 0:00:02]} 59. Kxf3 {[%emt 0:00:01]} Kg7 {[%emt 0:00:01]} 60. Ke4 {[%emt 0:00:02]} Be6 {[%emt 0:00:03]} 61. Kf3 {[%emt 0:00:01]} Bc4 {[%emt 0:00:00]} 62. Ke4 {[%emt 0:00:03]} Be6 {[%emt 0:00:01]} 63. Rg2 {[%emt 0:00:01]} Kf7 {[%emt 0:00:02]} 64. Kd4 {[%emt 0:00:03]} Kg7 {[%emt 0:00:06]} 65. Kc5 {[%emt 0:00:01]} Kh6 {[%emt 0:00:07]} 66. Kb5 {[%emt 0:00:01]} f5 {[%emt 0:00:02]} 67. gxf5 {[%emt 0:00:03]} Bxf5 68. Rb2 {[%emt 0:00:05]} Bc2 {[%emt 0:00:02]} 69. Kxa5 {[%emt 0:00:01]} g4 {[%emt 0:00:01]} 70. Kb6 g3 {[%emt 0:00:01]} 71. a5 {[%emt 0:00:03]} g2 {[%emt 0:00:01]} 72. a6 {[%emt 0:00:04]} g1=Q+ {[%emt 0:00:02]} 73. Kb7 {[%emt 0:00:01]} Qg2+ {[%emt 0:00:01]} 74. Kb6 {[%emt 0:00:03]} Qf2+ {[%emt 0:00:01]} 75. Kb7 {[%emt 0:00:02]} Qf3+ {[%emt 0:00:01]} 76. Kb8 {[%emt 0:00:03]} Qf4+ {[%emt 0:00:02]} 77. Kb7 {[%emt 0:00:01]} Qe4+ {[%emt 0:00:01]} 78. Kb6 {[%emt 0:00:04]} Qd4+ {[%emt 0:00:02]} 79. Kb7 {[%emt 0:00:01]} Qxb2 80. a7 Qa2 {[%emt 0:00:02]} 81. a8=Q {[%emt 0:00:05]} Qxa8+ {[%emt 0:00:01]} 82. Kxa8 {[%emt 0:00:01]} b2 {[%emt 0:00:01]} 83. Ka7 {[%emt 0:00:02]} b1=Q {[%emt 0:00:03]} 84. Ka6 {[%emt 0:00:01]} Bd3+ {[%emt 0:00:01]} 85. Ka7 {[%emt 0:00:00]} Be4 {[%emt 0:00:02]} 86. Ka6 {[%emt 0:00:02]} Qb7+ {[%emt 0:00:01]} 87. Ka5 {[%emt 0:00:01]} Bd3 {[%emt 0:00:03]} 88. Ka4 {[%emt 0:00:01]} Qb5+ {[%emt 0:00:01]} 89. Ka3 {[%emt 0:00:00]} Bc2 {[%emt 0:00:01]} 90. Ka2 {[%emt 0:00:02]} Qb3+ {[%emt 0:00:00]} 91. Ka1 {[%emt 0:00:01]} Qb1# {[%emt 0:00:01]} 0-1

[Event "3rd FIDE WCCC Blitz G10 2019"]
[Site "Minsk"]
[Date "2019.08.18"]
[Round "5.5"]
[White "Zavivaeva, Evelina"]
[Black "Sidorenja, Milena"]
[Result "0-1"]
[ECO "B01"]
[WhiteElo "1302"]
[BlackElo "1573"]
[Annotator "NA"]
[PlyCount "44"]
[EventDate "2019.08.18"]
[EventType "swiss"]
[EventCountry "BLR"]
[SourceTitle "playchess.com"]
[Source "ChessBase"]
[SourceQuality "1"]
[TimeControl "300+2"]

1. e4 {[%emt 0:00:00]} d5 {[%emt 0:00:00]} 2. exd5 {[%emt 0:00:00]} Qxd5 {[%emt 0:00:00]} 3. Nc3 {[%emt 0:00:01]} Qa5 {[%emt 0:00:01]} 4. Nf3 {[%emt 0:00:01]} Nf6 {[%emt 0:00:02]} 5. d4 {[%emt 0:00:08]} Bg4 {[%emt 0:00:02]} 6. Be2 {[%emt 0:00:17]} Nc6 {[%emt 0:00:02]} 7. O-O {[%emt 0:00:03]} O-O-O {[%emt 0:00:03]} 8. Be3 {[%emt 0:00:16]} e5 {[%emt 0:00:04]} 9. Bg5 {[%emt 0:03:42]} Nxd4 {[%emt 0:01:18]} 10. Nxd4 {[%emt 0:00:42]} Rxd4 {[%emt 0:00:13]} 11. Bxg4+ {[%emt 0:00:08]} Nxg4 {[%emt 0:00:12]} 12. Qf3 {[%emt 0:00:01]} Bd6 {[%emt 0:00:17]} 13. Rad1 {[%emt 0:00:02]} Nxh2 {[%emt 0:00:12]} 14. Rxd4 {[%emt 0:00:03]} Nxf3+ {[%emt 0:00:02]} 15. gxf3 {[%emt 0:00:03]} exd4 {[%emt 0:00:02]} 16. Ne4 {[%emt 0:00:01]} Re8 {[%emt 0:00:15]} 17. Nxd6+ {[%emt 0:00:01]} cxd6 {[%emt 0:00:02]} 18. Bf4 {[%emt 0:00:02]} Qd5 {[%emt 0:00:05]} 19. Bg3 {[%emt 0:00:03]} h5 {[%emt 0:00:01]} 20. Rd1 {[%emt 0:00:03]} Qxf3 {[%emt 0:00:08]} 21. Rd3 {[%emt 0:00:01]} Re1+ {[%emt 0:00:03]} 22. Kh2 {[%emt 0:00:02]} Qh1# {[%emt 0:00:01]} 0-1

[Event "3rd FIDE WCCC Blitz G10 2019"]
[Site "Minsk"]
[Date "2019.08.18"]
[Round "5.6"]
[White "Tsareva, Darya"]
[Black "Fedorova, Olesya"]
[Result "0-1"]
[ECO "B34"]
[WhiteElo "1177"]
[BlackElo "1524"]
[Annotator "NA"]
[PlyCount "70"]
[EventDate "2019.08.18"]
[EventType "swiss"]
[EventCountry "BLR"]
[SourceTitle "playchess.com"]
[Source "ChessBase"]
[SourceQuality "1"]
[TimeControl "300+2"]

1. e4 {[%emt 0:00:00]} c5 {[%emt 0:00:00]} 2. Nf3 {[%emt 0:00:01]} Nc6 {[%emt 0:00:01]} 3. d4 {[%emt 0:00:01]} cxd4 {[%emt 0:00:02]} 4. Nxd4 {[%emt 0:00:01]} g6 {[%emt 0:00:00]} 5. Nc3 {[%emt 0:00:04]} Bg7 {[%emt 0:00:01]} 6. Be3 {[%emt 0:00:05]} Nf6 {[%emt 0:00:01]} 7. f3 {[%emt 0:00:01]} O-O {[%emt 0:00:02]} 8. Qd2 {[%emt 0:00:01]} d5 {[%emt 0:00:00]} 9. exd5 Nxd5 {[%emt 0:00:01]} 10. Bf2 {[%emt 0:00:28]} Nxc3 {[%emt 0:00:30]} 11. bxc3 {[%emt 0:00:05]} e5 {[%emt 0:00:14]} 12. Nxc6 {[%emt 0:00:06]} Qxd2+ {[%emt 0:00:05]} 13. Kxd2 {[%emt 0:00:02]} bxc6 {[%emt 0:00:01]} 14. Bd3 {[%emt 0:00:06]} f5 {[%emt 0:00:03]} 15. Bc5 {[%emt 0:00:03]} Rd8 {[%emt 0:00:06]} 16. Ke2 {[%emt 0:00:04]} Be6 {[%emt 0:00:06]} 17. a3 {[%emt 0:00:06]} Bd5 {[%emt 0:00:12]} 18. Bb4 {[%emt 0:01:14]} a5 {[%emt 0:00:12]} 19. c4 {[%emt 0:00:33]} axb4 {[%emt 0:00:14]} 20. cxd5 {[%emt 0:00:01]} e4 {[%emt 0:00:01]} 21. fxe4 {[%emt 0:00:03]} Bxa1 {[%emt 0:00:02]} 22. Rxa1 {[%emt 0:00:01]} fxe4 {[%emt 0:00:02]} 23. Bxe4 {[%emt 0:00:02]} cxd5 {[%emt 0:00:01]} 24. Bf3 {[%emt 0:00:06]} bxa3 {[%emt 0:00:25]} 25. c4 {[%emt 0:00:02]} Ra7 {[%emt 0:00:21]} 26. Bxd5+ {[%emt 0:00:04]} Kg7 {[%emt 0:00:01]} 27. Kd3 {[%emt 0:00:07]} Rb8 {[%emt 0:00:14]} 28. Bf3 {[%emt 0:00:08]} a2 {[%emt 0:00:20]} 29. Kc2 {[%emt 0:00:13]} Kf6 {[%emt 0:00:06]} 30. Bd5 {[%emt 0:00:02]} Ke5 {[%emt 0:00:02]} 31. h3 {[%emt 0:00:12]} Kd4 {[%emt 0:00:13]} 32. Be6 {[%emt 0:00:02]} Re8 {[%emt 0:00:16]} 33. Bd5 {[%emt 0:00:03]} Re2+ {[%emt 0:00:08]} 34. Kb3 {[%emt 0:00:02]} Kc5 {[%emt 0:00:17]} 35. Kc3 {[%emt 0:00:06]} Ra3# {[%emt 0:00:08] Kd4+} 0-1

[Event "3rd FIDE WCCC Blitz G10 2019"]
[Site "Minsk"]
[Date "2019.08.18"]
[Round "6.1"]
[White "Satanovskaia, Evgeniia"]
[Black "Ho, Ngoc Vy"]
[Result "1-0"]
[ECO "D45"]
[WhiteElo "1399"]
[BlackElo "1327"]
[Annotator "NA"]
[PlyCount "165"]
[EventDate "2019.08.18"]
[EventType "swiss"]
[EventCountry "BLR"]
[SourceTitle "playchess.com"]
[Source "ChessBase"]
[SourceQuality "1"]
[TimeControl "300+2"]

1. d4 {[%emt 0:00:00]} d5 {[%emt 0:00:00]} 2. c4 {[%emt 0:00:00]} c6 {[%emt 0:00:00]} 3. e3 {[%emt 0:00:01]} Nf6 {[%emt 0:00:00]} 4. Nc3 {[%emt 0:00:01]} e6 {[%emt 0:00:00]} 5. Nf3 {[%emt 0:00:01]} Nbd7 {[%emt 0:00:01]} 6. Qc2 {[%emt 0:00:04]} Bd6 {[%emt 0:00:02]} 7. b3 {[%emt 0:00:03]} O-O {[%emt 0:00:02]} 8. Be2 {[%emt 0:00:00]} Qc7 {[%emt 0:00:01]} 9. Bb2 {[%emt 0:00:10]} e5 {[%emt 0:00:01]} 10. cxd5 {[%emt 0:00:08]} cxd5 {[%emt 0:00:01]} 11. Rc1 {[%emt 0:00:12]} b6 {[%emt 0:00:20]} 12. O-O {[%emt 0:00:22]} e4 {[%emt 0:00:06]} 13. Ne5 {[%emt 0:00:08]} Nxe5 {[%emt 0:00:12]} 14. dxe5 {[%emt 0:00:38]} Bxe5 {[%emt 0:00:02]} 15. Nxe4 {[%emt 0:00:47]} Bxh2+ {[%emt 0:01:30]} 16. Kh1 {[%emt 0:00:01]} Qxc2 {[%emt 0:00:01]} 17. Nxf6+ {[%emt 0:00:19]} gxf6 {[%emt 0:00:02]} 18. Rxc2 {[%emt 0:00:03]} Be5 {[%emt 0:00:01]} 19. Bf3 {[%emt 0:00:32]} Be6 {[%emt 0:00:02]} 20. Rd1 {[%emt 0:00:10]} Rfd8 {[%emt 0:00:06]} 21. g3 {[%emt 0:00:12]} Rab8 {[%emt 0:01:16]} 22. Bg2 {[%emt 0:00:37]} Rd7 {[%emt 0:00:04]} 23. f4 {[%emt 0:00:08]} Bxb2 {[%emt 0:00:05]} 24. Rxb2 Rbd8 {[%emt 0:00:02]} 25. Rbd2 {[%emt 0:00:04]} Kg7 {[%emt 0:00:08]} 26. Kg1 {[%emt 0:00:10]} Kg6 {[%emt 0:00:32]} 27. Rd4 {[%emt 0:00:12]} Bg4 {[%emt 0:00:20]} 28. R1d2 {[%emt 0:00:04]} Be6 {[%emt 0:00:01]} 29. Kf2 {[%emt 0:00:02]} f5 {[%emt 0:00:11]} 30. Bf3 {[%emt 0:00:16]} Kf6 {[%emt 0:00:02]} 31. Be2 {[%emt 0:00:04]} Rc7 {[%emt 0:00:02]} 32. Bf3 {[%emt 0:00:05]} Rcd7 {[%emt 0:00:04]} 33. Kg2 {[%emt 0:00:09]} Ke7 {[%emt 0:00:02]} 34. Kh3 {[%emt 0:00:01]} Kf6 {[%emt 0:00:01]} 35. Kg2 {[%emt 0:00:07]} a5 {[%emt 0:00:04]} 36. Kf2 {[%emt 0:00:06]} b5 {[%emt 0:00:02]} 37. Rc2 {[%emt 0:00:07]} Rd6 {[%emt 0:00:09]} 38. Rc5 {[%emt 0:00:03]} b4 {[%emt 0:00:31]} 39. Rxa5 {[%emt 0:00:03]} Rb6 {[%emt 0:00:05]} 40. Bxd5 Bxd5 {[%emt 0:00:01]} 41. Rdxd5 {[%emt 0:00:06]} Rxd5 42. Rxd5 {[%emt 0:00:01]} Ra6 {[%emt 0:00:01]} 43. Rb5 {[%emt 0:00:04]} Rxa2+ {[%emt 0:00:02]} 44. Kf3 {[%emt 0:00:01]} Ra3 {[%emt 0:00:04]} 45. Rxb4 {[%emt 0:00:01]} Ke6 {[%emt 0:00:01]} 46. Rb6+ {[%emt 0:00:02]} Kd5 {[%emt 0:00:01]} 47. Rb5+ {[%emt 0:00:01]} Ke6 {[%emt 0:00:01]} 48. e4 {[%emt 0:00:04]} fxe4+ {[%emt 0:00:03]} 49. Kxe4 {[%emt 0:00:00]} f5+ {[%emt 0:00:04]} 50. Kd4 {[%emt 0:00:04]} Ra1 {[%emt 0:00:02]} 51. Re5+ {[%emt 0:00:02]} Kf6 {[%emt 0:00:01]} 52. b4 {[%emt 0:00:02]} Rb1 {[%emt 0:00:01]} 53. Kc5 {[%emt 0:00:03]} Rc1+ {[%emt 0:00:01]} 54. Kb6 {[%emt 0:00:02]} h5 {[%emt 0:00:02]} 55. b5 {[%emt 0:00:01]} Rc3 {[%emt 0:00:01]} 56. Kb7 {[%emt 0:00:03]} Rxg3 {[%emt 0:00:01]} 57. b6 {[%emt 0:00:02]} Rb3 {[%emt 0:00:01]} 58. Kc7 {[%emt 0:00:02]} h4 {[%emt 0:00:01]} 59. b7 {[%emt 0:00:01]} h3 {[%emt 0:00:01]} 60. b8=Q Rxb8 {[%emt 0:00:06]} 61. Kxb8 {[%emt 0:00:04]} h2 {[%emt 0:00:01]} 62. Re1 {[%emt 0:00:02]} Kg6 {[%emt 0:00:01]} 63. Rh1 {[%emt 0:00:01]} Kh5 {[%emt 0:00:00]} 64. Rxh2+ {[%emt 0:00:00]} Kg4 {[%emt 0:00:01]} 65. Rf2 {[%emt 0:00:01]} Kg3 {[%emt 0:00:01]} 66. Rf1 {[%emt 0:00:01]} Kg2 {[%emt 0:00:02]} 67. Ra1 {[%emt 0:00:01]} Kg3 {[%emt 0:00:01]} 68. Ra4 {[%emt 0:00:00]} Kf3 {[%emt 0:00:02]} 69. Kc7 Kg4 {[%emt 0:00:03]} 70. Kd6 {[%emt 0:00:02]} Kh5 {[%emt 0:00:02]} 71. Ke5 {[%emt 0:00:02]} Kg4 {[%emt 0:00:01]} 72. Ra6 {[%emt 0:00:03]} Kh5 {[%emt 0:00:03]} 73. Kxf5 {[%emt 0:00:01]} Kh4 {[%emt 0:00:01]} 74. Rg6 {[%emt 0:00:03]} Kh5 {[%emt 0:00:01]} 75. Rg8 {[%emt 0:00:02]} Kh6 {[%emt 0:00:01]} 76. Ke6 {[%emt 0:00:03]} Kh7 {[%emt 0:00:01]} 77. Rg1 {[%emt 0:00:01]} Kh8 {[%emt 0:00:01]} 78. f5 {[%emt 0:00:02]} Kh7 {[%emt 0:00:01]} 79. f6 {[%emt 0:00:01]} Kh8 {[%emt 0:00:01]} 80. f7 {[%emt 0:00:03]} Kh7 {[%emt 0:00:00]} 81. Ke7 {[%emt 0:00:04]} Kh8 {[%emt 0:00:03]} 82. f8=Q+ {[%emt 0:00:03]} Kh7 {[%emt 0:00:00]} 83. Qg7# {[%emt 0:00:01]} 1-0

[Event "3rd FIDE WCCC Blitz G10 2019"]
[Site "Minsk"]
[Date "2019.08.18"]
[Round "6.2"]
[White "Sidorenja, Milena"]
[Black "Khamdamova, Afruza"]
[Result "0-1"]
[ECO "C44"]
[WhiteElo "1573"]
[BlackElo "1607"]
[Annotator "NA"]
[PlyCount "114"]
[EventDate "2019.08.18"]
[EventType "swiss"]
[EventCountry "BLR"]
[SourceTitle "playchess.com"]
[Source "ChessBase"]
[SourceQuality "1"]
[TimeControl "300+2"]

1. e4 e5 2. Nf3 {[%emt 0:00:03]} Nc6 {[%emt 0:00:00]} 3. d4 {[%emt 0:00:02]} exd4 {[%emt 0:00:01]} 4. c3 {[%emt 0:00:00]} dxc3 5. Nxc3 {[%emt 0:00:02]} Bc5 {[%emt 0:00:05]} 6. Bc4 {[%emt 0:00:02]} d6 {[%emt 0:00:01]} 7. O-O {[%emt 0:00:10]} Nf6 {[%emt 0:00:02]} 8. Nd5 {[%emt 0:00:17]} h6 {[%emt 0:00:06]} 9. h3 {[%emt 0:00:06]} O-O {[%emt 0:00:03]} 10. Re1 {[%emt 0:00:09]} Re8 {[%emt 0:00:09]} 11. b4 {[%emt 0:01:01]} Nxb4 {[%emt 0:00:39]} 12. Nxb4 {[%emt 0:00:04]} Bxb4 {[%emt 0:00:01]} 13. Qb3 {[%emt 0:00:01]} Bxe1 {[%emt 0:00:10]} 14. Bxf7+ {[%emt 0:00:05]} Kh7 {[%emt 0:00:09]} 15. e5 {[%emt 0:00:41]} dxe5 {[%emt 0:00:33]} 16. Qc2+ {[%emt 0:00:01]} e4 {[%emt 0:00:11]} 17. Bxe8 {[%emt 0:00:16]} Bxf2+ {[%emt 0:00:02]} 18. Kxf2 {[%emt 0:00:05]} Qxe8 {[%emt 0:00:09]} 19. Bb2 {[%emt 0:00:20]} Qg6 {[%emt 0:00:19]} 20. Nd4 {[%emt 0:00:29]} c6 {[%emt 0:00:27]} 21. Re1 {[%emt 0:00:15]} Bd7 {[%emt 0:00:09]} 22. Re3 {[%emt 0:00:04]} Rf8 {[%emt 0:00:04]} 23. Ke2 {[%emt 0:00:26]} Qxg2+ {[%emt 0:00:04]} 24. Kd1 {[%emt 0:00:03]} Qg1+ {[%emt 0:00:18]} 25. Re1 {[%emt 0:00:07]} Qg3 {[%emt 0:00:08]} 26. Ne2 {[%emt 0:00:22]} Qxh3 {[%emt 0:00:14]} 27. Bxf6 {[%emt 0:00:15]} Rxf6 {[%emt 0:00:01]} 28. Qxe4+ {[%emt 0:00:03]} Bf5 {[%emt 0:00:01]} 29. Qd4 {[%emt 0:00:13]} c5 {[%emt 0:00:10]} 30. Qd2 {[%emt 0:00:04]} Qf3 {[%emt 0:00:20]} 31. Kc1 {[%emt 0:00:06]} Rb6 {[%emt 0:00:02]} 32. Nc3 {[%emt 0:00:02]} Qd3 {[%emt 0:00:12]} 33. Qxd3 {[%emt 0:00:04]} Bxd3 {[%emt 0:00:00]} 34. Kd2 {[%emt 0:00:02]} Bf5 {[%emt 0:00:03]} 35. Nd5 {[%emt 0:00:04]} Rb2+ {[%emt 0:00:03]} 36. Kc1 {[%emt 0:00:01]} Rxa2 37. Re5 {[%emt 0:00:04]} Bg6 {[%emt 0:00:05]} 38. Re7 {[%emt 0:00:02]} Ra1+ {[%emt 0:00:04]} 39. Kb2 {[%emt 0:00:01]} Rb1+ {[%emt 0:00:02]} 40. Kc3 {[%emt 0:00:01]} a5 {[%emt 0:00:01]} 41. Ne3 {[%emt 0:00:04]} a4 {[%emt 0:00:01]} 42. Nc2 {[%emt 0:00:02]} Bxc2 {[%emt 0:00:02]} 43. Kxc2 {[%emt 0:00:01]} Rb5 {[%emt 0:00:01]} 44. Re1 {[%emt 0:00:02]} a3 {[%emt 0:00:04]} 45. Ra1 {[%emt 0:00:01]} Ra5 {[%emt 0:00:03]} 46. Kb3 {[%emt 0:00:02]} b5 {[%emt 0:00:03]} 47. Ra2 {[%emt 0:00:02]} b4 {[%emt 0:00:03]} 48. Kc4 {[%emt 0:00:01]} h5 {[%emt 0:00:01]} 49. Kb3 {[%emt 0:00:02]} h4 {[%emt 0:00:01]} 50. Kc4 {[%emt 0:00:02]} g5 {[%emt 0:00:01]} 51. Kb3 {[%emt 0:00:02]} h3 {[%emt 0:00:01]} 52. Kc4 {[%emt 0:00:01]} g4 {[%emt 0:00:00]} 53. Kb3 {[%emt 0:00:01]} g3 {[%emt 0:00:02]} 54. Kc4 {[%emt 0:00:02]} h2 {[%emt 0:00:00]} 55. Kb3 {[%emt 0:00:02]} h1=Q {[%emt 0:00:03]} 56. Rh2+ {[%emt 0:00:03]} Qxh2 {[%emt 0:00:02]} 57. Kc4 {[%emt 0:00:01]} Qc2+ {[%emt 0:00:03]} 0-1

[Event "3rd FIDE WCCC Blitz G10 2019"]
[Site "Minsk"]
[Date "2019.08.18"]
[Round "6.3"]
[White "Salmina, Veronika"]
[Black "Shukhman, Anna"]
[Result "0-1"]
[ECO "A57"]
[WhiteElo "1391"]
[BlackElo "1806"]
[Annotator "NA"]
[PlyCount "64"]
[EventDate "2019.08.18"]
[EventType "swiss"]
[EventCountry "BLR"]
[SourceTitle "playchess.com"]
[Source "ChessBase"]
[SourceQuality "1"]
[TimeControl "300+2"]

1. d4 {[%emt 0:00:00]} Nf6 {[%emt 0:00:01]} 2. c4 {[%emt 0:00:01]} c5 {[%emt 0:00:01]} 3. d5 {[%emt 0:00:05]} b5 {[%emt 0:00:04]} 4. Nd2 {[%emt 0:00:07]} d6 {[%emt 0:00:17]} 5. e4 {[%emt 0:00:08]} b4 {[%emt 0:00:02]} 6. f4 {[%emt 0:00:15]} Nbd7 {[%emt 0:00:32]} 7. Ngf3 {[%emt 0:00:18]} Qc7 {[%emt 0:00:08]} 8. Be2 {[%emt 0:00:31]} g6 {[%emt 0:00:02]} 9. Qc2 {[%emt 0:00:24]} Bg7 {[%emt 0:00:03]} 10. Nb3 {[%emt 0:00:17]} a5 {[%emt 0:00:24]} 11. a4 {[%emt 0:00:23]} O-O {[%emt 0:00:13]} 12. h4 {[%emt 0:00:09]} h5 {[%emt 0:00:14]} 13. Ng5 {[%emt 0:00:06]} Nb6 {[%emt 0:00:29]} 14. Rf1 {[%emt 0:00:30]} Bd7 {[%emt 0:00:36]} 15. Nd2 {[%emt 0:00:07]} Rab8 {[%emt 0:00:24]} 16. Ra2 {[%emt 0:00:42]} Nxa4 {[%emt 0:00:25]} 17. b3 {[%emt 0:00:18]} Nc3 {[%emt 0:00:02]} 18. Rb2 {[%emt 0:00:13]} Ng4 {[%emt 0:00:21]} 19. Bxg4 {[%emt 0:00:20]} Bxg4 {[%emt 0:00:03]} 20. Ndf3 {[%emt 0:00:11]} a4 {[%emt 0:00:16]} 21. bxa4 {[%emt 0:00:07]} Bd7 {[%emt 0:00:02]} 22. Qd3 {[%emt 0:00:16]} Nxa4 {[%emt 0:00:10]} 23. Rbf2 {[%emt 0:00:06]} b3 {[%emt 0:00:03]} 24. Qb1 {[%emt 0:00:10]} Nc3 {[%emt 0:00:13]} 25. Qd3 {[%emt 0:00:01]} Qa5 {[%emt 0:00:05]} 26. Bd2 {[%emt 0:00:02]} b2 {[%emt 0:00:05]} 27. Bxc3 {[%emt 0:00:02]} Bxc3+ {[%emt 0:00:02]} 28. Ke2 {[%emt 0:00:02]} Qa2 {[%emt 0:00:05]} 29. Qc2 {[%emt 0:00:02]} Ba4 {[%emt 0:00:19]} 30. Qxc3 {[%emt 0:00:02]} b1=Q+ {[%emt 0:00:02]} 31. Ke3 {[%emt 0:00:03]} Qbb3 {[%emt 0:00:02]} 32. Qxb3 {[%emt 0:00:02]} Rxb3# {[%emt 0:00:02]} 0-1

[Event "3rd FIDE WCCC Blitz G10 2019"]
[Site "Minsk"]
[Date "2019.08.18"]
[Round "6.4"]
[White "Nurgaliyeva, Zarina"]
[Black "Klintsevich, Aliaksandra"]
[Result "1-0"]
[ECO "B11"]
[WhiteElo "1474"]
[BlackElo "1114"]
[Annotator "NA"]
[PlyCount "105"]
[EventDate "2019.08.18"]
[EventType "swiss"]
[EventCountry "BLR"]
[SourceTitle "playchess.com"]
[Source "ChessBase"]
[SourceQuality "1"]
[TimeControl "300+2"]

1. e4 {[%emt 0:00:00]} c6 {[%emt 0:00:00]} 2. Nc3 {[%emt 0:00:00]} d5 {[%emt 0:00:00]} 3. Nf3 {[%emt 0:00:01]} Bg4 {[%emt 0:00:01]} 4. h3 {[%emt 0:00:01]} Bh5 {[%emt 0:00:01]} 5. exd5 {[%emt 0:00:04]} cxd5 {[%emt 0:00:01]} 6. Bb5+ {[%emt 0:00:01]} Nc6 {[%emt 0:00:04]} 7. g4 {[%emt 0:00:06]} Bg6 {[%emt 0:00:01]} 8. Ne5 {[%emt 0:00:17]} Rc8 {[%emt 0:00:02]} 9. d4 {[%emt 0:00:10]} Nf6 {[%emt 0:00:02]} 10. f4 {[%emt 0:00:15]} Be4 {[%emt 0:00:15]} 11. Nxe4 {[%emt 0:00:04]} Nxe4 {[%emt 0:00:04]} 12. Be3 {[%emt 0:00:42]} e6 {[%emt 0:00:04]} 13. g5 {[%emt 0:00:14]} Bd6 {[%emt 0:00:13]} 14. Qf3 {[%emt 0:00:22]} O-O {[%emt 0:00:09]} 15. Nxc6 {[%emt 0:00:05]} bxc6 {[%emt 0:00:03]} 16. Bd3 {[%emt 0:00:03]} Qa5+ {[%emt 0:00:24]} 17. c3 {[%emt 0:00:10]} c5 {[%emt 0:00:15]} 18. Bxe4 {[%emt 0:00:09]} dxe4 {[%emt 0:00:03]} 19. Qxe4 {[%emt 0:00:02]} cxd4 {[%emt 0:00:06]} 20. Bxd4 {[%emt 0:00:02]} Qf5 {[%emt 0:00:13]} 21. Qxf5 {[%emt 0:00:05]} exf5 {[%emt 0:00:02]} 22. O-O {[%emt 0:00:02]} Rfe8 {[%emt 0:00:11]} 23. Bxa7 {[%emt 0:00:50]} Bc5+ {[%emt 0:00:06]} 24. Bxc5 {[%emt 0:00:02]} Rxc5 {[%emt 0:00:01]} 25. Rae1 {[%emt 0:00:04]} Rcc8 {[%emt 0:00:16]} 26. Rxe8+ {[%emt 0:00:04]} Rxe8 {[%emt 0:00:01]} 27. Kf2 {[%emt 0:00:02]} Ra8 {[%emt 0:00:05]} 28. Rd1 {[%emt 0:00:18]} g6 {[%emt 0:00:03]} 29. a3 {[%emt 0:00:02]} Rb8 {[%emt 0:00:02]} 30. Rd2 {[%emt 0:00:02]} Kg7 {[%emt 0:00:17]} 31. a4 {[%emt 0:00:01]} Ra8 {[%emt 0:00:03]} 32. Rd4 {[%emt 0:00:01]} Rb8 {[%emt 0:00:04]} 33. b4 {[%emt 0:00:01]} Rc8 {[%emt 0:00:06]} 34. c4 {[%emt 0:00:01]} Ra8 {[%emt 0:00:02]} 35. a5 {[%emt 0:00:01]} Rb8 {[%emt 0:00:00]} 36. b5 {[%emt 0:00:01]} Ra8 {[%emt 0:00:05]} 37. a6 {[%emt 0:00:01]} Ra7 {[%emt 0:00:09]} 38. c5 {[%emt 0:00:03]} Ra8 {[%emt 0:00:17]} 39. b6 {[%emt 0:00:01]} Rxa6 {[%emt 0:00:08]} 40. b7 {[%emt 0:00:04]} Ra2+ {[%emt 0:00:02]} 41. Ke3 {[%emt 0:00:06]} Rb2 {[%emt 0:00:01]} 42. c6 {[%emt 0:00:01]} Rb6 {[%emt 0:00:33]} 43. c7 {[%emt 0:00:02]} Rb3+ {[%emt 0:00:10]} 44. Rd3 {[%emt 0:00:03]} Rxb7 {[%emt 0:00:07]} 45. c8=Q {[%emt 0:00:05]} Re7+ {[%emt 0:00:03]} 46. Kf3 {[%emt 0:00:02]} f6 {[%emt 0:00:41]} 47. Qc6 {[%emt 0:00:17]} fxg5 {[%emt 0:00:04]} 48. fxg5 {[%emt 0:00:02]} Rf7 {[%emt 0:00:03]} 49. Qc3+ {[%emt 0:00:02]} Kg8 {[%emt 0:00:18]} 50. Rd8+ {[%emt 0:00:02]} Rf8 {[%emt 0:00:02]} 51. Qc4+ {[%emt 0:00:02]} Kh8 {[%emt 0:00:03]} 52. Rxf8+ {[%emt 0:00:02]} Kg7 {[%emt 0:00:06]} 53. Qg8# {[%emt 0:00:02]} 1-0